[Event "Titled Tuesday Blitz April 18 Early 2023"]
[White "Marcziter, Dmitrii"]
[Black "Necula, Iulian"]
[WhiteFideId "13900765"]
[BlackFideId "1232380"]
[WhiteElo "2162"]
[BlackElo "1790"]
[Result "1-0"]
[Round "05"]
[TimeControl "180+2"]
[Date "2023.04.18"]
[WhiteClock "0:01:12"]
[BlackClock "0:00:01"]

1. d4 {[%clk 0:03:00]}  d6 {[%clk 0:03:00]} 2. e4 {[%clk 0:03:00]}  Nf6 {[%clk 0:02:59]} 3. Nc3 {[%clk 0:03:00]}  e5 {[%clk 0:02:59]} 4. Nf3 {[%clk 0:03:00]}  Nbd7 {[%clk 0:02:58]} 5. Bc4 {[%clk 0:02:59]}  Be7 {[%clk 0:02:58]} 6. g4 {[%clk 0:02:59]}  h6 {[%clk 0:02:57]} 7. Rg1 {[%clk 0:02:58]}  Nb6 {[%clk 0:02:53]} 8. Be2 {[%clk 0:02:48]}  Bxg4 {[%clk 0:02:51]} 9. h3 {[%clk 0:02:39]}  Bxf3 {[%clk 0:02:48]} 10. Bxf3 {[%clk 0:02:38]}  g5 {[%clk 0:02:43]} 11. h4 {[%clk 0:02:35]}  Rg8 {[%clk 0:02:41]} 12. hxg5 {[%clk 0:02:34]}  hxg5 {[%clk 0:02:40]} 13. Rxg5 {[%clk 0:02:32]}  Rxg5 {[%clk 0:02:39]} 14. Bxg5 {[%clk 0:02:32]}  Ng8 {[%clk 0:02:09]} 15. Be3 {[%clk 0:02:30]}  Nc4 {[%clk 0:02:06]} 16. Bc1 {[%clk 0:02:23]}  Bg5 {[%clk 0:01:47]} 17. Nd5 {[%clk 0:02:13]}  c6 {[%clk 0:01:39]} 18. Bxg5 {[%clk 0:01:59]}  Qxg5 {[%clk 0:01:37]} 19. Nc7+ {[%clk 0:01:59]}  Kd7 {[%clk 0:01:37]} 20. Nxa8 {[%clk 0:01:59]}  exd4 {[%clk 0:01:08]} 21. Ke2 {[%clk 0:01:44]}  Nf6 {[%clk 0:01:05]} 22. b3 {[%clk 0:01:40]}  Ne5 {[%clk 0:01:01]} 23. Qg1 {[%clk 0:01:34]}  Qf4 {[%clk 0:00:58]} 24. Qg3 {[%clk 0:01:32]}  Ng6 {[%clk 0:00:18]} 25. Qxf4 {[%clk 0:01:28]}  Nxf4+ {[%clk 0:00:19]} 26. Kd2 {[%clk 0:01:28]}  d5 {[%clk 0:00:09]} 27. exd5 {[%clk 0:01:26]}  N6xd5 {[%clk 0:00:10]} 28. Rh1 {[%clk 0:01:22]}  Ng6 {[%clk 0:00:08]} 29. Bxd5 {[%clk 0:01:21]}  cxd5 {[%clk 0:00:08]} 30. Rh7 {[%clk 0:01:20]}  Ke6 {[%clk 0:00:07]} 31. Nc7+ {[%clk 0:01:18]}  Kf6 {[%clk 0:00:08]} 32. Nxd5+ {[%clk 0:01:18]}  Ke5 {[%clk 0:00:08]} 33. Nb4 {[%clk 0:01:17]}  a5 {[%clk 0:00:07]} 34. Nd3+ {[%clk 0:01:17]}  Kf6 {[%clk 0:00:06]} 35. a4 {[%clk 0:01:16]}  Ne7 {[%clk 0:00:03]} 36. Rh6+ {[%clk 0:01:15]}  Kg7 {[%clk 0:00:01]} 37. Rh5 {[%clk 0:01:14]}  b6 {[%clk 0:00:01]} 38. Rb5 {[%clk 0:01:12]} 1-0


[Site "https://www.chess.com"]

[Event "Titled Tuesday Blitz April 18 Early 2023"]
[White "Hartikainen, Jarmo"]
[Black "Ansh M Shah"]
[WhiteFideId "503134"]
[BlackFideId "25033379"]
[WhiteElo "2109"]
[BlackElo "2084"]
[Result "0-1"]
[Round "05"]
[TimeControl "180+2"]
[Date "2023.04.18"]
[WhiteClock "0:00:01"]
[BlackClock "0:00:13"]

1. e4 {[%clk 0:03:00]}  c6 {[%clk 0:03:00]} 2. d4 {[%clk 0:03:00]}  d5 {[%clk 0:03:01]} 3. Nc3 {[%clk 0:03:00]}  dxe4 {[%clk 0:03:01]} 4. Nxe4 {[%clk 0:03:01]}  Bf5 {[%clk 0:03:02]} 5. Ng3 {[%clk 0:03:00]}  Bg6 {[%clk 0:03:03]} 6. h4 {[%clk 0:03:01]}  h6 {[%clk 0:03:03]} 7. Bc4 {[%clk 0:03:00]}  Nf6 {[%clk 0:03:01]} 8. N1e2 {[%clk 0:03:00]}  e6 {[%clk 0:03:01]} 9. Nf4 {[%clk 0:03:00]}  Bh7 {[%clk 0:03:02]} 10. O-O {[%clk 0:03:00]}  Bd6 {[%clk 0:03:01]} 11. Nxe6 {[%clk 0:02:59]}  fxe6 {[%clk 0:03:01]} 12. Bxe6 {[%clk 0:02:59]}  Qc7 {[%clk 0:02:59]} 13. Nh5 {[%clk 0:02:04]}  Nbd7 {[%clk 0:02:13]} 14. Nxg7+ {[%clk 0:01:59]}  Kd8 {[%clk 0:02:13]} 15. Bh3 {[%clk 0:01:47]}  Nf8 {[%clk 0:02:05]} 16. Bxh6 {[%clk 0:01:28]}  Bxc2 {[%clk 0:01:49]} 17. Qxc2 {[%clk 0:01:27]}  Rxh6 {[%clk 0:01:49]} 18. Nf5 {[%clk 0:01:28]}  Rh5 {[%clk 0:01:40]} 19. Rfe1 {[%clk 0:01:17]}  a5 {[%clk 0:01:19]} 20. Re2 {[%clk 0:01:08]}  a4 {[%clk 0:01:04]} 21. Rae1 {[%clk 0:01:07]}  Ra5 {[%clk 0:01:01]} 22. g4 {[%clk 0:00:19]}  Raxf5 {[%clk 0:00:46]} 23. gxf5 {[%clk 0:00:19]}  Rxh4 {[%clk 0:00:47]} 24. Qd3 {[%clk 0:00:13]}  Qh7 {[%clk 0:00:39]} 25. Bg2 {[%clk 0:00:12]}  Bh2+ {[%clk 0:00:36]} 26. Kf1 {[%clk 0:00:11]}  Bf4 {[%clk 0:00:36]} 27. Re5 {[%clk 0:00:06]}  N8d7 {[%clk 0:00:16]} 28. Qd1 {[%clk 0:00:01]}  Bxe5 {[%clk 0:00:12]} 29. dxe5 {[%clk 0:00:01]}  Nd5 {[%clk 0:00:13]} 0-1


[Site "https://www.chess.com"]

[Event "Titled Tuesday Blitz April 18 Early 2023"]
[White "Buscar, Michael"]
[Black "Vargas, Mauricio"]
[WhiteFideId "2603616"]
[BlackFideId "4404572"]
[WhiteElo "2010"]
[BlackElo "1998"]
[Result "1-0"]
[Round "05"]
[TimeControl "180+2"]
[Date "2023.04.18"]
[WhiteClock "0:00:44"]
[BlackClock "0:00:04"]

1. Nf3 {[%clk 0:02:37]}  Nc6 {[%clk 0:02:26]} 2. b3 {[%clk 0:02:30]}  e5 {[%clk 0:02:25]} 3. Bb2 {[%clk 0:02:29]}  d6 {[%clk 0:02:26]} 4. e3 {[%clk 0:02:29]}  f5 {[%clk 0:02:26]} 5. c4 {[%clk 0:02:27]}  Nf6 {[%clk 0:02:26]} 6. d3 {[%clk 0:02:26]}  g6 {[%clk 0:02:22]} 7. Be2 {[%clk 0:02:24]}  Bg7 {[%clk 0:02:22]} 8. Nbd2 {[%clk 0:02:14]}  O-O {[%clk 0:02:21]} 9. O-O {[%clk 0:02:10]}  Qe8 {[%clk 0:02:19]} 10. a3 {[%clk 0:02:06]}  h6 {[%clk 0:02:17]} 11. b4 {[%clk 0:02:05]}  g5 {[%clk 0:02:17]} 12. Ne1 {[%clk 0:02:03]}  g4 {[%clk 0:02:08]} 13. Nc2 {[%clk 0:01:51]}  Rf7 {[%clk 0:02:02]} 14. b5 {[%clk 0:01:47]}  Ne7 {[%clk 0:02:01]} 15. Nb4 {[%clk 0:01:47]}  Kh7 {[%clk 0:01:52]} 16. Qc2 {[%clk 0:01:43]}  Kh8 {[%clk 0:01:49]} 17. a4 {[%clk 0:01:40]}  h5 {[%clk 0:01:44]} 18. c5 {[%clk 0:01:40]}  Be6 {[%clk 0:01:28]} 19. cxd6 {[%clk 0:01:39]}  cxd6 {[%clk 0:01:27]} 20. Qc7 {[%clk 0:01:38]}  Qd7 {[%clk 0:01:18]} 21. Rfc1 {[%clk 0:01:33]}  Rc8 {[%clk 0:01:12]} 22. Qxd7 {[%clk 0:01:25]}  Bxd7 {[%clk 0:01:11]} 23. Rxc8+ {[%clk 0:01:24]}  Nxc8 {[%clk 0:01:04]} 24. Rc1 {[%clk 0:01:25]}  Rf8 {[%clk 0:00:37]} 25. Rc7 {[%clk 0:01:22]}  Rd8 {[%clk 0:00:34]} 26. Rxb7 {[%clk 0:01:19]}  Bf8 {[%clk 0:00:23]} 27. Nc6 {[%clk 0:01:13]}  Bxc6 {[%clk 0:00:20]} 28. bxc6 {[%clk 0:01:13]}  Re8 {[%clk 0:00:18]} 29. d4 {[%clk 0:01:09]}  Nd5 {[%clk 0:00:13]} 30. Nc4 {[%clk 0:01:05]}  e4 {[%clk 0:00:11]} 31. Na3 {[%clk 0:00:51]}  f4 {[%clk 0:00:10]} 32. Bc4 {[%clk 0:00:50]}  Ndb6 {[%clk 0:00:05]} 33. Bf7 {[%clk 0:00:44]}  Re7 {[%clk 0:00:04]} 34. d5+ {[%clk 0:00:44]} 1-0


[Site "https://www.chess.com"]

[Event "Titled Tuesday Blitz April 18 Early 2023"]
[White "Semenova, Alina"]
[Black "mohsengabr2002"]
[WhiteFideId "24113875"]
[WhiteElo "1833"]
[BlackElo "2357"]
[Result "0-1"]
[Round "05"]
[TimeControl "180+2"]
[Date "2023.04.18"]
[WhiteClock "0:00:09"]
[BlackClock "0:00:55"]

1. e4 {[%clk 0:03:00]}  c5 {[%clk 0:02:57]} 2. Nf3 {[%clk 0:02:59]}  d6 {[%clk 0:02:57]} 3. d4 {[%clk 0:02:59]}  cxd4 {[%clk 0:02:58]} 4. Nxd4 {[%clk 0:03:00]}  a6 {[%clk 0:02:59]} 5. Nc3 {[%clk 0:03:00]}  e5 {[%clk 0:02:59]} 6. Nb3 {[%clk 0:03:00]}  Nd7 {[%clk 0:02:57]} 7. Be3 {[%clk 0:03:01]}  Qc7 {[%clk 0:02:57]} 8. Nd5 {[%clk 0:03:00]}  Qd8 {[%clk 0:02:55]} 9. Qd2 {[%clk 0:02:58]}  Ne7 {[%clk 0:02:54]} 10. O-O-O {[%clk 0:02:58]}  Nxd5 {[%clk 0:02:54]} 11. exd5 {[%clk 0:02:58]}  Be7 {[%clk 0:02:52]} 12. f4 {[%clk 0:02:58]}  exf4 {[%clk 0:02:50]} 13. Bxf4 {[%clk 0:02:59]}  O-O {[%clk 0:02:49]} 14. g3 {[%clk 0:02:58]}  b5 {[%clk 0:02:47]} 15. Bg2 {[%clk 0:02:59]}  Nb6 {[%clk 0:02:44]} 16. Nd4 {[%clk 0:02:53]}  Nc4 {[%clk 0:02:37]} 17. Qd3 {[%clk 0:02:50]}  Bf6 {[%clk 0:02:35]} 18. c3 {[%clk 0:02:31]}  Bg4 {[%clk 0:02:33]} 19. Nc6 {[%clk 0:02:24]}  Qb6 {[%clk 0:02:32]} 20. Rde1 {[%clk 0:02:20]}  Nxb2 {[%clk 0:02:19]} 21. Kxb2 {[%clk 0:02:03]}  b4 {[%clk 0:02:19]} 22. Nxb4 {[%clk 0:01:21]}  Qxb4+ {[%clk 0:02:19]} 23. Kc2 {[%clk 0:01:22]}  Bxc3 {[%clk 0:02:09]} 24. Rb1 {[%clk 0:01:15]}  Qa4+ {[%clk 0:01:28]} 25. Kxc3 {[%clk 0:01:14]}  Qxa2 {[%clk 0:01:27]} 26. Rb4 {[%clk 0:00:54]}  Qxg2 {[%clk 0:01:25]} 27. Re1 {[%clk 0:00:41]}  Rac8+ {[%clk 0:01:22]} 28. Kd4 {[%clk 0:00:40]}  Qf2+ {[%clk 0:01:19]} 29. Re3 {[%clk 0:00:38]}  Rfe8 {[%clk 0:01:13]} 30. Rc4 {[%clk 0:00:35]}  Rb8 {[%clk 0:01:10]} 31. Bxd6 {[%clk 0:00:33]}  Rbd8 {[%clk 0:01:04]} 32. Rc6 {[%clk 0:00:18]}  Qf6+ {[%clk 0:00:57]} 33. Be5 {[%clk 0:00:16]}  Qxc6 {[%clk 0:00:57]} 34. Bxg7 {[%clk 0:00:09]}  Rxd5# {[%clk 0:00:55]} 0-1


[Site "https://www.chess.com"]

[Event "Titled Tuesday Blitz April 18 Early 2023"]
[White "Prado, Alexandra"]
[Black "Pavlidou, Ekaterini"]
[WhiteFideId "3301346"]
[BlackFideId "4213262"]
[WhiteElo "1759"]
[BlackElo "2126"]
[Result "0-1"]
[Round "05"]
[TimeControl "180+2"]
[Date "2023.04.18"]
[WhiteClock "0:00:02"]
[BlackClock "0:01:04"]

1. e4 {[%clk 0:02:48]}  c5 {[%clk 0:02:59]} 2. Nc3 {[%clk 0:02:45]}  Nc6 {[%clk 0:02:59]} 3. g3 {[%clk 0:02:45]}  g6 {[%clk 0:02:59]} 4. Bg2 {[%clk 0:02:46]}  Bg7 {[%clk 0:03:00]} 5. d3 {[%clk 0:02:46]}  d6 {[%clk 0:03:00]} 6. Nf3 {[%clk 0:02:38]}  Nf6 {[%clk 0:02:58]} 7. O-O {[%clk 0:02:37]}  O-O {[%clk 0:02:57]} 8. h3 {[%clk 0:02:35]}  Nd7 {[%clk 0:02:51]} 9. Be3 {[%clk 0:02:22]}  Nd4 {[%clk 0:02:50]} 10. Qd2 {[%clk 0:02:12]}  a6 {[%clk 0:02:48]} 11. a4 {[%clk 0:02:07]}  Rb8 {[%clk 0:02:48]} 12. Rab1 {[%clk 0:01:35]}  b5 {[%clk 0:02:46]} 13. axb5 {[%clk 0:01:32]}  axb5 {[%clk 0:02:47]} 14. Ne2 {[%clk 0:01:29]}  e5 {[%clk 0:02:45]} 15. Nfxd4 {[%clk 0:01:02]}  cxd4 {[%clk 0:02:44]} 16. Bh6 {[%clk 0:01:02]}  Nc5 {[%clk 0:02:40]} 17. Bxg7 {[%clk 0:00:59]}  Kxg7 {[%clk 0:02:39]} 18. f4 {[%clk 0:00:59]}  f6 {[%clk 0:02:36]} 19. f5 {[%clk 0:00:45]}  b4 {[%clk 0:02:36]} 20. fxg6 {[%clk 0:00:44]}  hxg6 {[%clk 0:02:36]} 21. g4 {[%clk 0:00:20]}  Be6 {[%clk 0:02:30]} 22. Ng3 {[%clk 0:00:20]}  Qe7 {[%clk 0:02:19]} 23. Bf3 {[%clk 0:00:20]}  Rh8 {[%clk 0:02:17]} 24. Bg2 {[%clk 0:00:17]}  b3 {[%clk 0:02:15]} 25. c3 {[%clk 0:00:17]}  Na4 {[%clk 0:01:51]} 26. cxd4 {[%clk 0:00:16]}  Qa7 {[%clk 0:01:51]} 27. Qf2 {[%clk 0:00:14]}  Qxd4 {[%clk 0:01:49]} 28. Qxd4 {[%clk 0:00:14]}  exd4 {[%clk 0:01:49]} 29. Ne2 {[%clk 0:00:13]}  Rb4 {[%clk 0:01:48]} 30. Rfc1 {[%clk 0:00:10]}  Nc5 {[%clk 0:01:49]} 31. Rd1 {[%clk 0:00:06]}  Bc8 {[%clk 0:01:47]} 32. Bf1 {[%clk 0:00:07]}  Ba6 {[%clk 0:01:46]} 33. Nf4 {[%clk 0:00:07]}  Bb7 {[%clk 0:01:40]} 34. Ra1 {[%clk 0:00:07]}  Ra8 {[%clk 0:01:37]} 35. Rxa8 {[%clk 0:00:07]}  Bxa8 {[%clk 0:01:37]} 36. Ra1 {[%clk 0:00:06]}  Ra4 {[%clk 0:01:34]} 37. Rc1 {[%clk 0:00:05]}  Ra2 {[%clk 0:01:32]} 38. Rb1 {[%clk 0:00:05]}  Na4 {[%clk 0:01:29]} 39. Ne2 {[%clk 0:00:04]}  d5 {[%clk 0:01:13]} 40. Nxd4 {[%clk 0:00:05]}  dxe4 {[%clk 0:01:13]} 41. dxe4 {[%clk 0:00:05]}  Bxe4 {[%clk 0:01:13]} 42. Rc1 {[%clk 0:00:05]}  Rxb2 {[%clk 0:01:12]} 43. Rc7+ {[%clk 0:00:04]}  Kh6 {[%clk 0:01:10]} 44. Bc4 {[%clk 0:00:02]}  Rb1+ {[%clk 0:01:09]} 45. Kf2 {[%clk 0:00:02]}  b2 {[%clk 0:01:09]} 46. Ne6 {[%clk 0:00:02]}  Rc1 {[%clk 0:01:04]} 0-1


[Site "https://www.chess.com"]

[Event "Titled Tuesday Blitz April 18 Early 2023"]
[White "Erzhanov, Arman"]
[Black "Butolo, Alexandru-Mircea"]
[WhiteFideId "4138821"]
[BlackFideId "1261649"]
[WhiteElo "2138"]
[BlackElo "1861"]
[Result "1-0"]
[Round "05"]
[TimeControl "180+2"]
[Date "2023.04.18"]
[WhiteClock "0:02:23"]
[BlackClock "0:01:32"]

1. e4 {[%clk 0:02:47]}  c5 {[%clk 0:02:59]} 2. Nf3 {[%clk 0:02:48]}  Nc6 {[%clk 0:02:58]} 3. Bb5 {[%clk 0:02:48]}  e5 {[%clk 0:02:53]} 4. O-O {[%clk 0:02:48]}  Bd6 {[%clk 0:02:52]} 5. Re1 {[%clk 0:02:48]}  Nge7 {[%clk 0:02:44]} 6. d3 {[%clk 0:02:48]}  O-O {[%clk 0:02:44]} 7. c3 {[%clk 0:02:48]}  a6 {[%clk 0:02:43]} 8. Ba4 {[%clk 0:02:48]}  b5 {[%clk 0:02:42]} 9. Bc2 {[%clk 0:02:48]}  Ng6 {[%clk 0:02:40]} 10. Nbd2 {[%clk 0:02:48]}  Bc7 {[%clk 0:02:40]} 11. Nf1 {[%clk 0:02:48]}  d5 {[%clk 0:02:38]} 12. Qe2 {[%clk 0:02:47]}  d4 {[%clk 0:02:38]} 13. Ng3 {[%clk 0:02:46]}  Bg4 {[%clk 0:02:18]} 14. h3 {[%clk 0:02:46]}  Be6 {[%clk 0:02:07]} 15. Ng5 {[%clk 0:02:44]}  Bc8 {[%clk 0:02:05]} 16. Bb3 {[%clk 0:02:29]}  Nf4 {[%clk 0:02:03]} 17. Bxf4 {[%clk 0:02:24]}  exf4 {[%clk 0:02:04]} 18. Qh5 {[%clk 0:02:23]}  h6 {[%clk 0:01:32]} 19. Nxf7 {[%clk 0:02:23]} 1-0


[Site "https://www.chess.com"]

[Event "Titled Tuesday Blitz April 18 Early 2023"]
[White "Yanayt, Eugene"]
[Black "Pourkashiyan, Atousa"]
[WhiteFideId "2020165"]
[BlackFideId "12502014"]
[WhiteElo "2083"]
[BlackElo "2228"]
[Result "0-1"]
[Round "05"]
[TimeControl "180+2"]
[Date "2023.04.18"]
[WhiteClock "0:00:16"]
[BlackClock "0:00:19"]

1. e4 {[%clk 0:03:00]}  c5 {[%clk 0:01:26]} 2. Nc3 {[%clk 0:02:58]}  e6 {[%clk 0:01:26]} 3. d3 {[%clk 0:02:55]}  a6 {[%clk 0:01:27]} 4. g4 {[%clk 0:02:55]}  b5 {[%clk 0:01:28]} 5. g5 {[%clk 0:02:53]}  Bb7 {[%clk 0:01:29]} 6. Bg2 {[%clk 0:02:52]}  Nc6 {[%clk 0:01:29]} 7. f4 {[%clk 0:02:52]}  b4 {[%clk 0:01:29]} 8. Nce2 {[%clk 0:02:51]}  d5 {[%clk 0:01:30]} 9. h4 {[%clk 0:02:49]}  dxe4 {[%clk 0:01:29]} 10. Bxe4 {[%clk 0:02:48]}  Nge7 {[%clk 0:01:26]} 11. Ng3 {[%clk 0:02:46]}  Qc7 {[%clk 0:01:24]} 12. Qf3 {[%clk 0:02:44]}  Nd4 {[%clk 0:01:24]} 13. Qg2 {[%clk 0:02:44]}  Bxe4 {[%clk 0:01:23]} 14. Nxe4 {[%clk 0:02:44]}  Nd5 {[%clk 0:01:22]} 15. Nh3 {[%clk 0:02:32]}  Be7 {[%clk 0:01:19]} 16. c3 {[%clk 0:02:29]}  bxc3 {[%clk 0:01:18]} 17. bxc3 {[%clk 0:02:27]}  Qa5 {[%clk 0:01:19]} 18. O-O {[%clk 0:02:22]}  Nf5 {[%clk 0:01:18]} 19. Qd2 {[%clk 0:02:02]}  Nxh4 {[%clk 0:01:15]} 20. Rb1 {[%clk 0:01:49]}  Nf5 {[%clk 0:01:14]} 21. Rb7 {[%clk 0:01:48]}  O-O {[%clk 0:01:14]} 22. Nhf2 {[%clk 0:01:36]}  Rab8 {[%clk 0:01:12]} 23. Rb3 {[%clk 0:01:30]}  Rfd8 {[%clk 0:01:08]} 24. Ng4 {[%clk 0:01:26]}  Nb6 {[%clk 0:00:47]} 25. Qg2 {[%clk 0:01:22]}  c4 {[%clk 0:00:43]} 26. dxc4 {[%clk 0:01:18]}  Nxc4 {[%clk 0:00:37]} 27. Nh6+ {[%clk 0:00:50]}  Kf8 {[%clk 0:00:35]} 28. Nxf5 {[%clk 0:00:49]}  Qxf5 {[%clk 0:00:33]} 29. Ng3 {[%clk 0:00:44]}  Qc5+ {[%clk 0:00:30]} 30. Kh2 {[%clk 0:00:42]}  Ne3 {[%clk 0:00:30]} 31. Bxe3 {[%clk 0:00:41]}  Qxe3 {[%clk 0:00:31]} 32. f5 {[%clk 0:00:41]}  Bd6 {[%clk 0:00:26]} 33. fxe6 {[%clk 0:00:39]}  Qxe6 {[%clk 0:00:23]} 34. Kh1 {[%clk 0:00:37]}  Rxb3 {[%clk 0:00:23]} 35. axb3 {[%clk 0:00:36]}  Bxg3 {[%clk 0:00:23]} 36. Qxg3 {[%clk 0:00:36]}  Qxb3 {[%clk 0:00:23]} 37. Qc7 {[%clk 0:00:34]}  Qd5+ {[%clk 0:00:23]} 38. Kg1 {[%clk 0:00:32]}  Qxg5+ {[%clk 0:00:21]} 39. Kh1 {[%clk 0:00:31]}  Qd5+ {[%clk 0:00:17]} 40. Kg1 {[%clk 0:00:31]}  Qd7 {[%clk 0:00:17]} 41. Qc5+ {[%clk 0:00:29]}  Kg8 {[%clk 0:00:17]} 42. Qf2 {[%clk 0:00:27]}  h6 {[%clk 0:00:17]} 43. c4 {[%clk 0:00:26]}  Qd4 {[%clk 0:00:16]} 44. c5 {[%clk 0:00:25]}  Qxf2+ {[%clk 0:00:15]} 45. Rxf2 {[%clk 0:00:26]}  Rc8 {[%clk 0:00:16]} 46. Rc2 {[%clk 0:00:24]}  Kf8 {[%clk 0:00:16]} 47. Kf2 {[%clk 0:00:25]}  Ke7 {[%clk 0:00:15]} 48. Ke3 {[%clk 0:00:26]}  Kd7 {[%clk 0:00:16]} 49. Kd4 {[%clk 0:00:26]}  Kc6 {[%clk 0:00:16]} 50. Ra2 {[%clk 0:00:25]}  Ra8 {[%clk 0:00:16]} 51. Kc4 {[%clk 0:00:25]}  a5 {[%clk 0:00:16]} 52. Ra4 {[%clk 0:00:25]}  h5 {[%clk 0:00:16]} 53. Ra3 {[%clk 0:00:22]}  a4 {[%clk 0:00:17]} 54. Rf3 {[%clk 0:00:19]}  f6 {[%clk 0:00:17]} 55. Rd3 {[%clk 0:00:19]}  a3 {[%clk 0:00:16]} 56. Rd6+ {[%clk 0:00:18]}  Kc7 {[%clk 0:00:17]} 57. Re6 {[%clk 0:00:17]}  a2 {[%clk 0:00:17]} 58. Kb5 {[%clk 0:00:17]}  Rb8+ {[%clk 0:00:17]} 59. Kc4 {[%clk 0:00:16]}  a1=Q {[%clk 0:00:17]} 60. Re7+ {[%clk 0:00:17]}  Kd8 {[%clk 0:00:17]} 61. Rxg7 {[%clk 0:00:17]}  Qa2+ {[%clk 0:00:18]} 62. Kd4 {[%clk 0:00:17]}  Rb4+ {[%clk 0:00:18]} 63. Kc3 {[%clk 0:00:16]}  Qa3+ {[%clk 0:00:18]} 64. Kc2 {[%clk 0:00:17]}  Rb2+ {[%clk 0:00:18]} 65. Kc1 {[%clk 0:00:16]}  Qa1# {[%clk 0:00:19]} 0-1


[Site "https://www.chess.com"]

[Event "Titled Tuesday Blitz April 18 Early 2023"]
[White "Kohler, Aran"]
[Black "Mazurkiewicz, Michal"]
[WhiteFideId "1002856"]
[BlackFideId "1124943"]
[WhiteElo "2247"]
[BlackElo "2054"]
[Result "0-1"]
[Round "05"]
[TimeControl "180+2"]
[Date "2023.04.18"]
[WhiteClock "0:00:09"]
[BlackClock "0:00:14"]

1. d4 {[%clk 0:02:49]}  Nf6 {[%clk 0:02:59]} 2. Nf3 {[%clk 0:02:48]}  g6 {[%clk 0:02:59]} 3. Bg5 {[%clk 0:02:48]}  Bg7 {[%clk 0:03:00]} 4. Nbd2 {[%clk 0:02:48]}  d5 {[%clk 0:03:00]} 5. e3 {[%clk 0:02:48]}  O-O {[%clk 0:03:00]} 6. Bd3 {[%clk 0:02:48]}  c6 {[%clk 0:03:01]} 7. c3 {[%clk 0:02:44]}  Nbd7 {[%clk 0:03:00]} 8. h4 {[%clk 0:02:44]}  h6 {[%clk 0:02:59]} 9. h5 {[%clk 0:02:44]}  hxg5 {[%clk 0:02:47]} 10. hxg6 {[%clk 0:02:44]}  Ne4 {[%clk 0:02:43]} 11. gxf7+ {[%clk 0:02:26]}  Rxf7 {[%clk 0:02:43]} 12. Bxe4 {[%clk 0:02:24]}  dxe4 {[%clk 0:02:38]} 13. Nxg5 {[%clk 0:02:25]}  Nf6 {[%clk 0:02:17]} 14. Nxf7 {[%clk 0:02:12]}  Kxf7 {[%clk 0:02:18]} 15. Qc2 {[%clk 0:01:52]}  Bf5 {[%clk 0:02:14]} 16. O-O-O {[%clk 0:01:47]}  Bg6 {[%clk 0:02:14]} 17. Kb1 {[%clk 0:01:43]}  b5 {[%clk 0:02:08]} 18. Ka1 {[%clk 0:01:42]}  Qd5 {[%clk 0:02:07]} 19. Nb3 {[%clk 0:01:35]}  a5 {[%clk 0:02:03]} 20. Nc5 {[%clk 0:01:35]}  a4 {[%clk 0:01:59]} 21. Rhf1 {[%clk 0:01:20]}  Kg8 {[%clk 0:01:59]} 22. a3 {[%clk 0:01:10]}  Bf7 {[%clk 0:01:58]} 23. Kb1 {[%clk 0:01:01]}  Ng4 {[%clk 0:01:50]} 24. Kc1 {[%clk 0:00:56]}  Bg6 {[%clk 0:01:11]} 25. Qe2 {[%clk 0:00:50]}  Nf6 {[%clk 0:00:48]} 26. f3 {[%clk 0:00:29]}  exf3 {[%clk 0:00:45]} 27. gxf3 {[%clk 0:00:29]}  Qa2 {[%clk 0:00:45]} 28. Nd3 {[%clk 0:00:19]}  Nd5 {[%clk 0:00:32]} 29. Kd2 {[%clk 0:00:14]}  c5 {[%clk 0:00:19]} 30. Rg1 {[%clk 0:00:14]}  Nxc3 {[%clk 0:00:19]} 31. Rxg6 {[%clk 0:00:10]}  Nxe2 {[%clk 0:00:19]} 32. Kxe2 {[%clk 0:00:10]}  Kf7 {[%clk 0:00:16]} 33. Rdg1 {[%clk 0:00:11]}  Rg8 {[%clk 0:00:17]} 34. dxc5 {[%clk 0:00:09]}  Qc4 {[%clk 0:00:16]} 35. R1g4 {[%clk 0:00:09]}  Qc2+ {[%clk 0:00:16]} 36. Kf1 {[%clk 0:00:09]}  Qxd3+ {[%clk 0:00:16]} 37. Kf2 {[%clk 0:00:10]}  Qc2+ {[%clk 0:00:13]} 38. Kg3 {[%clk 0:00:10]}  Qxc5 {[%clk 0:00:13]} 39. R6g5 {[%clk 0:00:09]}  Be5+ {[%clk 0:00:13]} 40. f4 {[%clk 0:00:09]}  Rxg5 {[%clk 0:00:14]} 41. Rxg5 {[%clk 0:00:09]}  Qxe3+ {[%clk 0:00:14]} 0-1


[Site "https://www.chess.com"]

[Event "Titled Tuesday Blitz April 18 Early 2023"]
[White "Avazkhonov, Alikhon"]
[Black "Aanna12"]
[WhiteFideId "14208504"]
[WhiteElo "1739"]
[BlackElo "2188"]
[Result "1-0"]
[Round "05"]
[TimeControl "180+2"]
[Date "2023.04.18"]
[WhiteClock "0:00:06"]
[BlackClock "0:00:05"]

1. d4 {[%clk 0:02:49]}  Nf6 {[%clk 0:02:43]} 2. c4 {[%clk 0:02:43]}  c5 {[%clk 0:02:43]} 3. d5 {[%clk 0:02:40]}  b5 {[%clk 0:02:42]} 4. cxb5 {[%clk 0:02:35]}  a6 {[%clk 0:02:43]} 5. e3 {[%clk 0:02:36]}  d6 {[%clk 0:02:36]} 6. Nc3 {[%clk 0:02:35]}  g6 {[%clk 0:02:35]} 7. Nf3 {[%clk 0:02:34]}  Bg7 {[%clk 0:02:35]} 8. bxa6 {[%clk 0:02:12]}  Bxa6 {[%clk 0:02:31]} 9. Bxa6 {[%clk 0:01:56]}  Nxa6 {[%clk 0:02:30]} 10. O-O {[%clk 0:01:57]}  O-O {[%clk 0:02:30]} 11. Nd2 {[%clk 0:01:50]}  Qa5 {[%clk 0:02:24]} 12. Nc4 {[%clk 0:01:49]}  Qb4 {[%clk 0:02:24]} 13. Qd3 {[%clk 0:01:45]}  Nc7 {[%clk 0:02:19]} 14. Rb1 {[%clk 0:00:25]}  Rfb8 {[%clk 0:02:11]} 15. b3 {[%clk 0:00:25]}  Nb5 {[%clk 0:02:00]} 16. Bb2 {[%clk 0:00:24]}  Nxc3 {[%clk 0:01:42]} 17. Bxc3 {[%clk 0:00:25]}  Qb7 {[%clk 0:01:41]} 18. Rfd1 {[%clk 0:00:15]}  Rxa2 {[%clk 0:01:38]} 19. b4 {[%clk 0:00:16]}  cxb4 {[%clk 0:01:35]} 20. Rxb4 {[%clk 0:00:16]}  Qc7 {[%clk 0:01:27]} 21. Rxb8+ {[%clk 0:00:17]}  Qxb8 {[%clk 0:01:26]} 22. Rb1 {[%clk 0:00:12]}  Qc7 {[%clk 0:01:26]} 23. h3 {[%clk 0:00:11]}  h5 {[%clk 0:01:24]} 24. Qd4 {[%clk 0:00:08]}  Ra4 {[%clk 0:01:20]} 25. Bb4 {[%clk 0:00:04]}  Nd7 {[%clk 0:01:06]} 26. Qd1 {[%clk 0:00:04]}  Ra8 {[%clk 0:01:03]} 27. Qb3 {[%clk 0:00:04]}  Rc8 {[%clk 0:01:02]} 28. Nd2 {[%clk 0:00:04]}  Qc2 {[%clk 0:01:00]} 29. Qxc2 {[%clk 0:00:03]}  Rxc2 {[%clk 0:01:00]} 30. Nf3 {[%clk 0:00:04]}  Nc5 {[%clk 0:00:58]} 31. Bxc5 {[%clk 0:00:03]}  Rxc5 {[%clk 0:00:57]} 32. Rb7 {[%clk 0:00:04]}  Bf6 {[%clk 0:00:54]} 33. e4 {[%clk 0:00:04]}  Rc4 {[%clk 0:00:51]} 34. Nd2 {[%clk 0:00:04]}  Rd4 {[%clk 0:00:49]} 35. Rb2 {[%clk 0:00:03]}  Kg7 {[%clk 0:00:39]} 36. Rc2 {[%clk 0:00:03]}  Rd3 {[%clk 0:00:26]} 37. Kf1 {[%clk 0:00:02]}  Rc3 {[%clk 0:00:23]} 38. Rxc3 {[%clk 0:00:02]}  Bxc3 {[%clk 0:00:22]} 39. Nf3 {[%clk 0:00:03]}  Kf6 {[%clk 0:00:20]} 40. Ke2 {[%clk 0:00:04]}  Be5 {[%clk 0:00:19]} 41. Ke3 {[%clk 0:00:03]}  e6 {[%clk 0:00:16]} 42. g4 {[%clk 0:00:03]}  hxg4 {[%clk 0:00:14]} 43. hxg4 {[%clk 0:00:03]}  exd5 {[%clk 0:00:12]} 44. exd5 {[%clk 0:00:04]}  Bb2 {[%clk 0:00:12]} 45. Ke4 {[%clk 0:00:05]}  Ba1 {[%clk 0:00:11]} 46. g5+ {[%clk 0:00:05]}  Ke7 {[%clk 0:00:10]} 47. Nd2 {[%clk 0:00:05]}  Bb2 {[%clk 0:00:06]} 48. f4 {[%clk 0:00:05]}  Bc1 {[%clk 0:00:05]} 49. Nc4 {[%clk 0:00:06]} 1-0


[Site "https://www.chess.com"]